Cogmind - Beta 16 @@@ ROGUE MODE // 2025.11.27 @ 20:59:46 Player: tthaar Result: Destroyed by D-53 Grenadier with Mini Grenade Launcher Performance ------------- Evolutions (0) 0 Regions Visited (2) 400 Robots Destroyed (25) 125 Value Destroyed (503) 503 Prototype IDs (5) 100 Alien Tech Used (0) 0 Bonus (26) 26 TOTAL SCORE: 1154 Bonus ------- Follower Combat Kills 35 Friendly Fire -9 Cogmind --------- Core Integrity 0/250 Matter 300/300 Energy 99/100 System Corruption 0% Temperature Cool (0) Movement Core (100) Ox1 Location -10/Mines Parts ------- > --- POWER (1) -------- (None) > --- PROPULSION (2) --- (None) > --- UTILITY (2) ------ Small Storage Unit Signal Interpreter > --- WEAPON (2) ------- (None) > --- INVENTORY (8) ---- Ion Engine Light Treads Light Treads Large Storage Unit Utility Shielding Medium Laser Light Assault Rifle Heavy Hammer Peak State ------------ > --- POWER ------------ Light Ion Engine > --- PROPULSION ------- Aluminum Leg Aluminum Leg > --- UTILITY ---------- Small Storage Unit Seismic Detector > --- WEAPON ----------- Assault Rifle Light Assault Rifle > --- INVENTORY -------- Light Ion Engine Light Treads Light Treads Light Assault Rifle [Rating: 7] Favorites ----------- Power Light Ion Engine Engine Light Ion Engine Propulsion Aluminum Leg Leg Aluminum Leg Utility Small Storage Unit Device Seismic Detector Storage Small Storage Unit Processor Signal Interpreter Protection Utility Shielding Weapon Light Assault Rifle Ballistic Gun Light Assault Rifle Launcher Grenade Launcher Build | -11 -10 -10 ------- Run | Yrd Mat Min Slots Evolved . | . . . Power . | . . . Propulsion . | . . . Utility . | . . . Weapon . | . . . Parts Attached 18 | 7 9 2 Power 2 | 1 1 . Engine 2 | 1 1 . Core . | . . . Reactor . | . . . Propulsion 6 | 2 3 1 Treads . | . . . Leg 6 | 2 3 1 Wheel . | . . . Hover . | . . . Flight . | . . . Utility 5 | 2 2 1 Device 1 | 1 . . Storage 2 | 1 . 1 Processor 1 | . 1 . Hackware . | . . . Protection 1 | . 1 . Artifact . | . . . Weapon 5 | 2 3 . Energy Gun . | . . . Energy Cannon . | . . . Ballistic Gun 3 | 2 1 . Ballistic Cannon . | . . . Launcher 2 | . 2 . Special Weapon . | . . . Impact Weapon . | . . . Slashing Weapon . | . . . Piercing Weapon . | . . . Special Melee Weapon . | . . . Unidentified Prototypes . | . . . Parts Lost 8 | . 3 5 Power 1 | . . 1 Propulsion 3 | . 1 2 Utility 1 | . 1 . Weapon 3 | . 1 2 Highest Loss Streak 5 | . 1 5 To Critical Strikes . | . . . Average Backups 7 | 3 7 8 Power . | . 1 1 Propulsion 2 | 1 2 2 Utility 1 | . 1 2 Weapon 2 | 1 2 3 Tool/Special . | . . . Unused Backups 7 | . 2 5 Power 2 | . 1 1 Propulsion 2 | . . 2 Utility . | . . . Weapon 3 | . 1 2 Tool/Special . | . . . Average Slot Usage (%) 98 | . 98 99 Engine 14 | . 14 14 Leg 27 | . 27 27 Storage 14 | . 14 14 Processor 5 | . 3 14 Protection 6 | . 8 . Ballistic Gun 19 | . 21 15 Launcher 8 | . 6 12 Peak Build Rating 7 | 7 7 7 Average Rating 6 | 5 6 6 On Entrance 4 | . 7 7 Avg Prop Armor Cover (%) . | . . . Naked Turns . | . . . Heaviest Build 15 | 12 15 14 Greatest Support 20 | 20 20 20 Greatest Overweight (x) 1 | . 1 1 Average Overweight (x) . | . . . Largest Inventory Capacity 15 | 8 8 15 Average Capacity 7 | 7 8 8 Most Carried 8 | 5 8 8 Average Carried 7 | 3 7 8 Final Capacity 8 | 8 8 8 Final Carried 8 | 5 8 8 Class Distribution -------------------- 100% | Mutant Dominant Class ---------------- Mutant | -10/Materials Mutant | -10/Mines Resources | -11 -10 -10 ----------- Run | Yrd Mat Min Matter Collected 719 | 282 348 89 Remotely . | . . . Salvage Created 610 | 81 492 37 Parts 43 | 5 37 1 Haulers Intercepted . | . . . Recyclers Shooed 4 | 1 3 . Parts Field Recycled . | . . . Retrieved Matter . | . . . Parts Self-Destructed . | . . . Prevented . | . . . Parts Restored . | . . . Kills | -11 -10 -10 ------- Run | Yrd Mat Min Combat Hostiles Destroyed 18 | . 16 2 Guns 9 | . 9 . AOE 9 | . 7 2 Classes Destroyed 10 | 2 7 1 Worker 1 | . 1 . Builder 1 | . 1 . Tunneler 2 | 1 1 . Recycler 2 | 1 . 1 Mechanic 1 | . 1 . Operator 1 | . 1 . Watcher 1 | . 1 . Swarmer 6 | . 6 . Grunt 10 | . 10 . Assembled 2 | . . 2 Best Kill Streak 5 | 2 5 3 Combat Bots Only 4 | . 4 2 Max Kills in Single Turn 3 | 1 3 2 Gunslinging . | . . . Exploded 2 | . 2 1 Melee . | . . . Uniques/NPCs Destroyed . | . . . Combat | -11 -10 -10 -------- Run | Yrd Mat Min Hostile Shots Fired 82 | . 71 11 Missed 22 | . 18 4 Hits 60 | . 53 7 Projectile 60 | . 53 7 AOE 13 | . . 13 Critical Strikes 1 | . 1 . Damage Taken 1088 | . 620 468 Core 292 | . 97 195 Absorbed by Shields . | . . . Redirected to Shielding 3 | . 3 . Core Remaining (%) 100 | 100 . . Volleys Fired 86 | 3 77 6 Largest 2 | 2 2 2 Hottest 50 | 40 50 50 Shots Fired 136 | 6 120 10 Gun 122 | 6 110 6 Cannon . | . . . Launcher 14 | . 10 4 Special . | . . . Kinetic 122 | 6 110 6 Thermal . | . . . Explosive 14 | . 10 4 Electromagnetic . | . . . Robot Hit Streak 14 | 5 14 3 Robot Miss Streak 3 | . 2 3 Penetration Max . | . . . Secondary Targets 1 | . 1 . Max Gunslinging Chain 1 | . 1 . Shots Hit Robots 87 | 5 76 6 Core Hits 53 | 3 43 7 Critical Kills . | . . . Critical Parts Destroyed 1 | . . 1 Critical Strikes 1 | . . 1 Destroy 1 | . . 1 Melee Attacks . | . . . Impact . | . . . Slashing . | . . . Piercing . | . . . Sneak Attacks . | . . . Combat Hostiles . | . . . Follow-up Attacks . | . . . Damage Inflicted 1715 | 58 1361 296 Guns 710 | 58 630 22 Cannons . | . . . Explosions 984 | . 710 274 Melee . | . . . Ramming 21 | . 21 . Kinetic 710 | 58 630 22 Thermal . | . . . Explosive 984 | . 710 274 Electromagnetic . | . . . Impact . | . . . Slashing . | . . . Piercing . | . . . Highest Corruption . | . . . Average Corruption . | . . . Corruption Purged . | . . . Corruption Blocked . | . . . Overload Shots . | . . . Overflow Damage 16 | . 12 4 Projectiles . | . . . Explosions 16 | . 12 4 Melee . | . . . Knockbacks . | . . . Impact . | . . . Kinetic . | . . . Secondary . | . . . Self-Inflicted Damage 43 | . 43 . Shots 4 | . 4 . Rammed . | . . . Targets Rammed 5 | . 5 . Kicked 5 | . 5 . Crushed . | . . . Highest Temperature 33 | . 33 10 Average Temperature 10 | . 11 7 Received Heat Transfer 240 | . 240 . Siege Activations . | . . . Martial Activations . | . . . Shielding Activations . | . . . Robots Disrupted . | . . . Combat Hostiles . | . . . Robots Corrupted . | . . . Combat Hostiles . | . . . Parts Fried . | . . . Impact Corruptions . | . . . Robots Melted . | . . . Combat Hostiles . | . . . Parts Melted . | . . . Heat Transferred . | . . . Parts Sabotaged . | . . . Parts Stolen . | . . . Parts Stripped . | . . . Power Chain Reactions . | . . . Alert | -11 -10 -10 ------- Run | Yrd Mat Min Maximum Alert Level . | . . . Low Security (%) 100 | 100 100 100 Level 1 . | . . . Level 2 . | . . . Level 3 . | . . . Level 4 . | . . . Level 5 . | . . . High Security . | . . . Max Security . | . . . Peak Influence 185 | 10 185 53 Initial 12 | . . 12 Average 21 | . 28 5 Influence Increases 614 | 10 532 72 Destroy 0b10 Robot/C 340 | . 320 20 Destroy 0b10 Robot/NC 45 | 10 30 5 Destroy Leader 82 | . 72 10 Allied During Kill 8 | . . 8 Successful Hack 16 | . 16 . Destroy Structure 78 | . 64 14 Lose Combat Pursuer 45 | . 30 15 Influence Decreases 614 | 10 499 105 Entered New Map 21 | . . 21 Time Decay 384 | 10 319 55 Lost Part 30 | . 30 . Lost Ally 29 | . . 29 Purge Threat 150 | . 150 . Squads Dispatched 4 | . 4 . Investigation 2 | . 2 . Extermination . | . . . Reinforcement 2 | . 2 . Assault . | . . . Garrison . | . . . Intercept . | . . . Searches Triggered . | . . . Construction Impeded . | . . . Haulers Reinforced . | . . . Active Scanning Responses . | . . . Cargo Convoy Interrupts . | . . . Stealth | -11 -10 -10 --------- Run | Yrd Mat Min Distress Signals 1 | . . 1 Communications Jammed . | . . . Distress Signals . | . . . Times Spotted 32 | . 25 7 Peak Tracking Total 4 | . 4 3 Tactical Retreats 2 | . 1 1 Traps | -11 -10 -10 ------- Run | Yrd Mat Min Traps Triggered 3 | . 3 . Indirectly . | . . . Trap Hack Attempts . | . . . Triggered . | . . . Disarmed . | . . . Reprogrammed . | . . . Reused . | . . . Traps Extracted . | . . . Installed . | . . . Triggered . | . . . Machines | -11 -10 -10 ---------- Run | Yrd Mat Min Machines Disabled . | . . . Max in Single Turn . | . . . Machines Repaired . | . . . Machines Dismantled . | . . . Machines Sabotaged . | . . . Overloaded Fab Kills . | . . . Hacking | -11 -10 -10 --------- Run | Yrd Mat Min Machines Accessed 6 | . 6 . Terminals 6 | . 6 . Fabricators . | . . . Repair Stations . | . . . Recycling Units . | . . . Scanalyzers . | . . . Garrison Access . | . . . Total Hacks 20 | . 20 . Successful 8 | . 8 . Failed 11 | . 11 . Catastrophic . | . . . Database Lockouts 1 | . 1 . Manual 16 | . 16 . Terminals 20 | . 20 . Fabricators . | . . . Repair Stations . | . . . Recycling Units . | . . . Scanalyzers . | . . . Garrison Access . | . . . Terminal Hacks 8 | . 8 . Robot Analysis 3 | . 3 . Prototype ID Bank 3 | . 3 . Terminal Index 1 | . 1 . Unreport Threat 1 | . 1 . Fabricator Hacks . | . . . Repair Station Hacks . | . . . Recycling Unit Hacks . | . . . Scanalyzer . | . . . Garrison Access Hacks . | . . . Unauthorized Hacks . | . . . Terminals . | . . . Fabricators . | . . . Repair Stations . | . . . Recycling Units . | . . . Scanalyzers . | . . . Garrison Access . | . . . Data Cores Recovered . | . . . Used . | . . . Hacking Detections 6 | . 6 . Full Trace Events . | . . . Feedback Events . | . . . Feedback Blocked . | . . . Robot Schematics Acquired . | . . . Robots Built . | . . . Authchips . | . . . Time . | . . . Total Robot Build Rating . | . . . Part Schematics Acquired . | . . . Parts Built . | . . . Authchips . | . . . Time . | . . . Total Part Build Rating . | . . . Part Studies Acquired . | . . . Parts Repaired . | . . . Time . | . . . Parts Recycled . | . . . Recycled Matter . | . . . Retrieved Matter . | . . . Retrieved Components . | . . . Parts Scanalyzed . | . . . Part Schematics Acquired . | . . . Parts Damaged . | . . . Bothacking | -11 -10 -10 ------------ Run | Yrd Mat Min Used RIF Installer . | . . . Robots Hacked . | . . . Non-combat . | . . . Combat . | . . . Robot Hacks Applied . | . . . Relay Couplers Released . | . . . Fabnet Peak Effective % . | . . . Robots Rewired . | . . . Allies Hacked . | . . . Hacks Repelled . | . . . Allies | -11 -10 -10 -------- Run | Yrd Mat Min Total Allies 5 | . . 5 Largest Group 5 | . . 5 Highest-Rated Group 83 | . . 83 Highest-Rated Ally 31 | . . 31 Total Orders . | . . . Ally Attacks 17 | . . 17 Total Damage 215 | . . 215 Kills 1 | . . 1 Allies Corrupted . | . . . Allies Melted . | . . . Intel | -11 -10 -10 ------- Run | Yrd Mat Min Active Infowar (turns) 133 | 49 84 . Seismic 133 | 49 84 . Robot Analysis Total 3 | . 3 . Derelict Logs Recovered 2 | . . 2 Drone Launches . | . . . Drone Recoveries . | . . . Exploration | -11 -10 -10 ------------- Run | Yrd Mat Min Turns Passed 1948 | 116 1358 474 Spaces Moved 1367 | 81 915 371 Core 12 | 9 . 3 Treads . | . . . Legs 1355 | 72 915 368 Wheels . | . . . Hover . | . . . Flight . | . . . Fastest Speed 50 | 50 120 100 Average Speed 119 | 112 120 120 Slowest Speed 190 | 120 190 190 Overloaded Moves . | . . . Propulsion Burnouts . | . . . Robots Hopped . | . . . Potential Cave-ins . | . . . Cave-ins Triggered . | . . . Exploration Rate (%) 52 | 6 99 53 Regions Visited 2 Branch Regions 1 Pre-discovered Areas . | . . . Known Exits Taken 1 | . 1 . Unknown Exits Taken 1 | 1 . . Scrap Searched 2 | . . 2 Spaces Dug . | . . . Terrain Destroyed 99 | . 81 18 Melee . | . . . Projectile . | . . . AOE 99 | . 81 18 Terrain Rammed . | . . . Walls Destroyed . | . . . Machines Disabled . | . . . Actions | -11 -10 -10 --------- Run | Yrd Mat Min Total 1554 | 97 1067 390 Wait 55 | 2 45 8 Move 1365 | 80 914 371 Hop . | . . . Pick Up 11 | 5 6 . Fast Attach 9 | 7 2 . Attach 1 | . 1 . Detach . | . . . Swap 15 | . 11 4 Drop 7 | . 6 1 Fire 86 | 3 77 6 Melee . | . . . Ram . | . . . Kick 5 | . 5 . Crush . | . . . Escape Stasis . | . . . Rewire . | . . . Trap . | . . . Miscellaneous . | . . . Route ------- -11/Scrapyard -10/Materials (discovered 4 exits: *Mat x3 / *Min) -10/Mines (discovered 1 exit: *Mat) History --------- Turn | Location | Event 28 | -11/Scrapyard | Discovered new exit (range 15) 117 | -11/Scrapyard | Entered Materials 305 | -10/Materials | Build established: Mutant 880 | -10/Materials | Discovered new exit (range 8) 966 | -10/Materials | Discovered new exit (range 5) 1271 | -10/Materials | Identified exit to Materials 1328 | -10/Materials | Discovered exit to Materials (range 15) 1353 | -10/Materials | Central database locked down 1435 | -10/Materials | Discovered exit to Materials (range 13) 1474 | -10/Materials | Identified exit to Mines 1475 | -10/Materials | Entered Mines 1476 | -10/Mines | Assembled infested the area 1582 | -10/Mines | Discovered exit to Materials (range 8) 1710 | -10/Mines | Learned Materials garrison access intel 1766 | -10/Mines | Assisted by bots powering up and referring to "LRC-V3" 1942 | -10/Mines | Core integrity fell below 50% 1949 | -10/Mines | Core integrity fell below 20% 1949 | -10/Mines | Destroyed by D-53 Grenadier with Mini Grenade Launcher Last Messages --------------- 01932_ R-06 Scavenger destroyed. 01932_ Trooper 1b destroyed. 01933_ U-05 Engineer lays Concrete. 01935_ U-05 Engineer builds a Wall. 01935_ U-05 Engineer lays Concrete. 01938_ Trooper 1a destroyed. 01939_ U-05 Engineer lays Concrete. 01939_ R-06 Scavenger destroyed. 01939_ Aluminum Leg destroyed. 01940_ U-05 Engineer lays Concrete. 01940_ TC-Y6Q(g) destroyed. 01940_ Grenade Launcher destroyed. 01941_ U-05 Engineer lays Concrete. 01943_ Ion Engine destroyed. 01944_ U-05 Engineer lays Concrete. 01946_ Aluminum Leg destroyed. 01947_ U-05 Engineer lays Concrete. 01947_ Lgt. Assault Rifle destroyed. 01947_ U-05 Engineer destroyed. 01949_ The unstable cave ceiling collapses. Map ----- +----------------------------------------------------+ | ????????????????????????????????????????????????## | | ???????????????????????????????????????????###### | | ???????????????????????????????????????????# | | ???????????????????????????????????????????# | | ???????????????????????????????????????????# | | ???????????????????????????????????????????### | | ?????????????????????????????????????????????##### | | ??##?????????????????????????????????????????????# | | ?? ????????????????????????????????????????????? | | ??# ????????????????????????????????????????????? | | ??# #??????????????????##???????????????????????? | | ??? ##??????????????? ???????????????????????? | | ??? ??????????????? #??????????????????????? | | ???? ???????????????# #??????????????????????? | | ????? ????????????#??# #??????????????????????? | | ?????# ????####????# ? =$#??????????????????????? | | ?????# ???## #???#%##% #??????????????????##### | | ?????# ##?# ????%# =%#?????????????????## ## | | ????## ### #???# ##???????????????# | | ???## ## #??## % #???????????????# | | ??## ## #### # ###?????????????# | | ??# ## # #????########## | | ??# #?# %## # ###### !!%!! | | ??## #??# = d % %! ######### | | ???## ##### %| d #???????## | | ????#### =%!! ! * @ ! ######????????## | | ???????## !!= % ##??######?????# | | ???????## #### #u ## #??#[ ##???## | | ???????# #?# ! ## ##### =#??## | | ???????# ##???## # # ## #?## | | ???????####????## # ## ### | | ??????????????# %!% # #z ##! ## | | ??????????????# * ## ###= ##%= ## | | ???????# # #?# ## #*!! #?# | | ???????# #???# ! #?# | | ???????# ########???# # = #?# # | | ???????#?????????????## #### ##!%! #?## ## | | ??????????????????????# ###??##### ! ##??### ##? | | ??????????????????????###?????????#=%###?????# #?? | | ??????????????????????????????????# *#???????# #?? | | ??????????????????????????????????#|=#???????# #?? | | ????????????????????????????#####?#!%######??# #?? | | ???????????????????????????## ###|!* =*#### #?? | | ???????????????????????????# +%=%=####%[%=! #?? | | ???????????????????????????# ##########%######?? | | ???????????????????????????# ###????# % #???? | | ???????????????????????????#????????# #???? | | ????????????????????????????????????# #???? | | ????????????????????????????????????# #???? | | ????????????????????????????????????# < #???? | +----------------------------------------------------+ Best States ------------- Heat Dissipation 25 Energy Generation 10 Energy Capacity 250 Matter Stores 300 Matter Capacity 300 Sight Range 16 Terrain Scan Density 10 Utility Shielding 33 Evasion (%) 55 Item Schematics ----------------- None Robot Schematics ------------------ None Fabricated ------------ Nothing Repaired ---------- Nothing Studied --------- None Alien Tech Used ----------------- None Achievements -------------- None Challenges ------------ None Game ------ Seed EnhancedMetamassSubcomponent Manual? 0 Play Time 00:19:42 Cumulative 34.1 hours Start 2025.11.27 @ 20:39:24 End 2025.11.27 @ 20:59:46 Sessions 1 Manual Loads 0 Difficulty Rogue Special Mode None Game No. 34 Rogue 34 Adventurer 0 Explorer 0 Win Type - Total 0 Types 0/0/0/0/0/0/0/0/0/0 Lore% 17 Gallery% 22 Achievement% 20 Wizard Run 0 Options --------- Layout 1 ASCII 0 Keyboard 0 Movement Arrows Keybinds 0 Fullscreen 2 Font 48/Smallcaps Map View 50x35 Zoom Use 0% Tactical HUD 1 Map Filters NONE Filters NONE Steam 1 RUN: 7e00c320-26d2-479b-9d3f-6d31ebbc6f01